bitfinex/quotes_SOLUSD_20251119
["timestamp","ask_amount","ask_price","bid_price","bid_amount"]
[1763556866207,3.98520426,139.19,139.16,0.2]
[1763556866514,18.12096,139.17,139.16,0.2]
[1763556866716,1.7,139.17,139.16,0.2]
[1763556866917,20.49096,139.17,139.16,0.2]
[1763556869739,20.49096,139.17,139.16,7.38597298]
[1763556870136,20.49096,139.17,139.16,0.2]
[1763556872332,19.82096,139.17,139.16,0.2]
[1763556872716,20.49096,139.17,139.16,0.2]
[1763556873116,20.49096,139.17,139.16,7.38597298]
[1763556873749,20.49096,139.17,139.16,0.2]
[1763556878932,1.7,139.17,139.16,7.38597298]
[1763556879554,1.7,139.21,139.16,27.47185955]
[1763556879732,0.66,139.2,139.16,25.35090543]
[1763556880049,0.66,139.2,139.17,2.12095412]
[1763556882152,0.66,139.2,139.18,7.18494036]
[1763556882330,0.66,139.2,139.17,7.18524102]
[1763556883445,11.90978181,139.19,139.16,7.38573438]
[1763556883628,1.7,139.18,139.16,2.32095412]
[1763556883824,2.36,139.18,139.16,9.5068563]
[1763556885744,0.66,139.2,139.17,2.12095412]
[1763556885932,0.66,139.19,139.18,2.12095412]
[1763556886126,0.66,139.19,139.16,25.35083463]
[1763556886127,0.66,139.19,139.17,2.12095412]
[1763556887230,0.66,139.19,139.18,7.18494036]
[1763556889941,0.66,139.19,139.17,7.18545663]
[1763556890141,1.7,139.18,139.17,7.18545663]
[1763556891167,1.7,139.18,139.17,9.30641075]
[1763556892254,2.37,139.18,139.17,7.18545663]
[1763556892642,2.37,139.18,139.17,9.30641075]
[1763556893280,1.7,139.18,139.17,9.30641075]
[1763556894748,1.7,139.18,139.17,7.18545663]
[1763556898082,2.37,139.18,139.17,7.18545663]
[1763556900354,1.7,139.18,139.17,9.30641075]
[1763556900651,1.7,139.2,139.17,27.27005233]
[1763556900854,2.12095412,139.24,139.19,2.12095412]
[1763556900855,0.67,139.24,139.19,2.12095412]
[1763556901065,0.67,139.24,139.17,26.84909821]
[1763556901066,1.7,139.23,139.21,2.12095412]
[1763556901547,2.37,139.23,139.21,2.12095412]
[1763556902369,2.37,139.23,139.22,7.18287602]
[1763556902561,1.7,139.23,139.22,7.18287602]
[1763556905189,1.7,139.23,139.22,9.30383014]
[1763556905970,1.7,139.23,139.22,7.18287602]
[1763556906986,1.7,139.23,139.21,7.18323385]
[1763556907360,2.37,139.23,139.21,7.18323385]
[1763556907564,0.67,139.22,139.2,7.18357043]
[1763556908987,0.67,139.22,139.19,7.18431384]
[1763556909190,0.67,139.22,139.19,25.14537426]
[1763556909557,0.67,139.22,139.19,27.26632838]
[1763556909855,18.79096,139.22,139.19,7.18431384]
[1763556910189,3.75817472,139.21,139.19,7.18431384]
[1763556910486,2.37,139.2,139.18,7.18473127]
[1763556911186,2.37,139.2,139.17,7.18545663]
[1763556911793,2.37,139.2,139.17,25.14909821]
[1763556912092,2.37,139.2,139.17,27.27005233]
[1763556916896,0.67,139.19,139.17,27.27005233]
[1763556917377,1.7,139.2,139.17,27.27005233]
[1763556917583,0.67,139.19,139.17,27.27005233]
[1763556920679,0.67,139.19,139.17,25.14909821]
[1763556921791,2.79095412,139.19,139.17,7.18545663]
[1763556922174,0.7,139.18,139.17,7.18545663]
[1763556923795,1.7,139.2,139.17,27.27005233]
[1763556924102,0.67,139.19,139.17,25.14909821]
[1763556924505,0.67,139.19,139.17,27.27005233]
[1763556924884,0.67,139.19,139.17,25.14909821]
[1763556927400,1.7,139.18,139.17,25.14909821]
[1763556927818,1.7,139.18,139.17,27.27005233]
[1763556928713,3.75817472,139.21,139.17,63.1973355]
[1763556928714,1.7,139.2,139.17,63.1973355]
[1763556928894,1.7,139.2,139.19,2.12095412]
[1763556929395,1.7,139.2,139.18,2.12095412]
[1763556929776,2.37,139.2,139.18,2.12095412]
[1763556930003,2.37,139.2,139.19,7.18442416]
[1763556931697,2.37,139.2,139.18,7.18494036]
[1763556932006,0.67,139.19,139.18,7.18494036]
[1763556932583,2.37,139.2,139.18,7.18494036]
[1763556933091,2.37,139.2,139.18,9.30589448]
[1763556933296,1.7,139.2,139.18,9.30589448]
[1763556933507,2.37,139.2,139.18,9.30589448]
[1763556934211,1.7,139.2,139.18,9.30589448]
[1763556934807,2.37,139.2,139.18,9.30589448]
[1763556935113,1.7,139.2,139.18,9.30589448]
[1763556935313,2.37,139.2,139.18,9.30589448]
[1763556935909,0.67,139.2,139.18,9.30589448]
[1763556936211,2.37,139.22,139.19,2.12095412]
[1763556936414,1.7,139.22,139.2,2.12095412]
[1763556936611,0.67,139.21,139.2,2.12095412]
[1763556936811,0.67,139.21,139.19,2.12095412]
[1763556937693,0.67,139.21,139.18,25.14729127]
[1763556938009,0.67,139.21,139.18,27.26824539]
[1763556938520,0.67,139.21,139.19,2.12095412]
[1763556938686,0.67,139.21,139.18,7.18494036]
[1763556939017,0.67,139.21,139.18,10.49708831]
[1763556939707,0.67,139.21,139.18,28.45943922]
[1763556940984,3.31214795,139.2,139.18,7.18494036]
[1763556941182,1.7,139.19,139.17,7.18524252]
[1763556941401,2.37,139.19,139.17,7.18524252]
[1763556941608,0.67,139.18,139.17,7.18524252]
[1763556945009,0.67,139.18,139.16,7.3858154]
[1763556950722,0.67,139.18,139.16,0.2]
[1763556951135,0.67,139.18,139.16,7.38583442]
[1763556955332,0.71,139.18,139.16,25.35076687]
[1763556957739,1.7,139.19,139.16,25.35076687]
[1763556958031,2.41,139.19,139.16,25.35076687]
[1763556958721,0.71,139.18,139.16,25.35076687]
[1763556958923,1.7,139.19,139.16,25.35076687]
[1763556959323,0.71,139.18,139.16,25.35076687]
[1763556960434,1.7,139.17,139.16,25.35076687]
[1763556960731,1.7,139.17,139.16,0.2]
[1763556960940,2.41,139.17,139.16,0.2]
[1763556961740,5.72214795,139.17,139.16,0.2]
[1763556961932,3.31214795,139.16,139.14,7.18677161]
[1763556962134,5.01214795,139.15,139.14,7.18677161]
[1763556962348,5.72214795,139.15,139.14,7.18677161]
[1763556963049,2.41,139.15,139.14,7.18677161]
[1763556963722,6.16948746,139.15,139.14,7.18677161]
[1763556964745,1.7,139.15,139.14,7.18677161]
[1763556965050,1.7,139.15,139.14,10.49891956]
[1763556966648,1.7,139.15,139.14,7.18677161]
[1763556966852,2.41,139.15,139.14,7.18677161]
[1763556968150,1.7,139.15,139.14,7.18677161]
[1763556969241,1.7,139.15,139.14,10.49891956]
[1763556969436,1.7,139.15,139.14,7.18677161]
[1763556969659,1.7,139.15,139.14,7.38677161]
[1763556970034,1.7,139.15,139.14,7.18677161]
[1763556970235,2.41,139.15,139.14,7.18677161]
[1763556973060,1.7,139.15,139.14,7.18677161]
[1763556975338,2.41,139.15,139.14,7.18677161]
[1763556976254,1.7,139.15,139.14,7.18677161]
[1763556977861,2.41,139.15,139.14,7.18677161]
[1763556981146,5.72214795,139.15,139.13,0.2]
[1763556981452,2.39,139.15,139.13,7.38746155]
[1763556981827,2.39,139.15,139.13,10.6996095]
[1763556981828,1.7,139.15,139.13,10.6996095]
[1763556982025,1.7,139.15,139.13,10.8996095]
[1763556982233,1.7,139.15,139.13,10.6996095]
[1763556984435,2.41,139.15,139.13,10.6996095]
[1763556984635,1.7,139.15,139.13,10.6996095]
[1763556986157,2.41,139.15,139.13,10.6996095]
[1763556987369,2.41,139.15,139.13,7.38746155]
[1763556988255,0.71,139.14,139.13,7.38746155]
[1763556993950,0.71,139.14,139.13,0.2]
[1763556994154,4.02214795,139.14,139.13,0.2]
[1763556994975,7.5342959,139.14,139.13,0.2]
[1763556995159,11.29451843,139.14,139.13,0.2]
[1763556996355,21.08334612,139.14,139.13,0.2]
[1763556996950,25.93528647,139.14,139.13,0.2]
[1763556998852,24.74603087,139.14,139.13,0.2]
[1763557001358,19.89409052,139.14,139.13,0.2]
[1763557002084,7.98237048,139.14,139.13,7.38752246]
[1763557002264,6.59311488,139.14,139.13,7.38752246]
[1763557003457,3.76022253,139.14,139.13,7.38752246]
[1763557003661,3.82289235,139.15,139.13,7.38752246]
[1763557004078,0.71,139.14,139.13,7.38752246]
[1763557005769,2.83289235,139.14,139.13,7.38752246]
[1763557005975,2.83289235,139.14,139.13,0.2]
[1763557006478,2.83289235,139.14,139.13,7.38752246]
[1763557008470,12.62172004,139.14,139.13,0.2]
[1763557009011,17.47044706,139.14,139.13,0.2]
[1763557010500,7.68161937,139.14,139.13,0.2]
[1763557010801,0.71,139.14,139.13,0.2]
[1763557012674,0.71,139.14,139.13,7.38752246]
[1763557013801,18.83096,139.14,139.13,7.38752246]
[1763557013992,20.95385235,139.14,139.13,0.2]
[1763557014190,38.92606032,139.14,139.13,0.2]
[1763557014604,9.78882769,139.13,139.09,0.2]
[1763557014908,9.78882769,139.13,139.09,7.38952173]
[1763557014909,2.12289235,139.11,139.09,7.38952173]
[1763557015097,1.7,139.1,139.09,7.38952173]
[1763557015395,2.41,139.1,139.09,7.38952173]
[1763557015772,1.7,139.1,139.09,7.38952173]
[1763557015972,1.7,139.12,139.09,27.88638776]
[1763557016192,1.7,139.12,139.1,0.4]
[1763557016795,1.7,139.12,139.1,2.52289235]
[1763557017398,1.7,139.14,139.11,2.52289235]
[1763557017805,1.7,139.14,139.12,0.4]
[1763557018100,1.7,139.14,139.13,7.18752246]
[1763557020201,1.7,139.14,139.12,7.1880391]
[1763557021878,2.41,139.14,139.12,7.1880391]
[1763557022080,1.7,139.14,139.12,7.1880391]
[1763557022281,0.71,139.13,139.11,17.97011621]
[1763557022501,2.41,139.14,139.11,17.97011621]
[1763557023691,2.41,139.14,139.11,25.55867202]
[1763557024080,1.7,139.14,139.12,0.4]
[1763557024288,1.7,139.14,139.12,2.52289235]
[1763557024609,1.7,139.14,139.12,0.4]
[1763557025693,1.7,139.16,139.13,25.15632861]
[1763557026108,1.7,139.16,139.13,25.55632861]
[1763557026410,2.41,139.16,139.13,25.15632861]
[1763557027400,2.41,139.16,139.13,27.27922096]
[1763557028488,2.41,139.16,139.13,27.67922096]
[1763557028819,1.7,139.16,139.13,27.67922096]
[1763557030312,1.7,139.16,139.14,0.4]
[1763557030497,1.7,139.16,139.13,27.67922096]
[1763557030690,1.7,139.16,139.13,25.15632861]
[1763557030887,1.7,139.16,139.13,25.55632861]
[1763557031102,1.7,139.16,139.13,27.67922096]
[1763557032005,2.41,139.16,139.13,27.67922096]
[1763557033113,1.7,139.16,139.13,27.67922096]
[1763557033290,1.7,139.16,139.13,25.55632861]
[1763557033492,2.41,139.16,139.13,27.67922096]
[1763557033701,2.41,139.16,139.13,27.27922096]
[1763557034215,2.41,139.16,139.13,25.15632861]
[1763557034216,1.7,139.16,139.13,25.15632861]
[1763557034407,0.71,139.15,139.13,7.18752246]
[1763557034602,0.71,139.15,139.12,7.18779095]
[1763557035005,2.83289235,139.15,139.12,7.18779095]
[1763557035207,2.83289235,139.15,139.12,25.1578887]
[1763557035410,0.71,139.14,139.12,17.97009775]
[1763557039402,1.7,139.16,139.13,2.52289235]
[1763557039601,1.7,139.16,139.14,7.18700589]
[1763557039802,1.7,139.16,139.14,7.58700589]
[1763557040333,1.7,139.16,139.14,7.18700589]
[1763557040907,1.7,139.16,139.14,7.58700589]
[1763557041104,1.7,139.16,139.14,7.18700589]
[1763557041599,0.72,139.15,139.14,7.18700589]
[1763557041810,2.42,139.16,139.14,9.30989824]
[1763557042945,2.42,139.16,139.14,7.18700589]
[1763557046810,1.7,139.16,139.14,7.18700589]
[1763557047140,2.4,139.16,139.14,7.18700589]
[1763557051733,2.4,139.16,139.14,25.15452062]
[1763557052051,1.7,139.16,139.14,25.15452062]
[1763557052208,4.84859262,139.19,139.15,0.4]
[1763557052209,7.67148497,139.19,139.15,0.4]
[1763557052420,2.4,139.19,139.15,0.4]
[1763557052619,1.7,139.19,139.15,0.4]
[1763557052950,0.7,139.18,139.16,7.18597298]
[1763557053117,1.7,139.19,139.16,25.15090543]
[1763557053325,0.7,139.18,139.16,25.15090543]
[1763557054208,2.82289235,139.18,139.14,17.96694484]
[1763557054424,2.12289235,139.17,139.15,7.18626872]
[1763557054646,0.7,139.17,139.15,7.18626872]
[1763557054838,0.7,139.16,139.15,7.18626872]
[1763557055052,0.7,139.16,139.14,17.96694484]
[1763557055924,2.82289235,139.18,139.14,17.96694484]
[1763557056124,0.7,139.18,139.14,20.48983719]
[1763557056943,0.7,139.18,139.14,27.67684308]
[1763557058218,3.82289235,139.19,139.15,2.52289235]
[1763557058219,1.7,139.19,139.15,2.52289235]
[1763557058420,2.4,139.19,139.15,2.52289235]
[1763557058848,2.4,139.19,139.15,3.7132278]
[1763557059228,2.4,139.19,139.16,25.15090543]
[1763557059942,0.7,139.18,139.16,25.15090543]
[1763557062143,0.7,139.18,139.16,7.18597298]
[1763557062524,1.7,139.19,139.16,7.18597298]
[1763557062728,2.4,139.19,139.16,7.18597298]
[1763557063038,31.22301549,139.21,139.17,3.7132278]
[1763557063039,19.82096,139.21,139.17,3.7132278]
[1763557063222,19.82096,139.21,139.18,7.18494036]
[1763557063223,0.7,139.2,139.18,7.18494036]
[1763557063432,2.4,139.21,139.18,25.14729127]
[1763557063638,0.7,139.2,139.18,25.14729127]
[1763557064038,2.4,139.21,139.18,25.14729127]
[1763557064572,0.7,139.2,139.18,25.14729127]
[1763557067544,1.7,139.21,139.19,0.4]
[1763557067752,0.7,139.23,139.19,3.7132278]
[1763557068057,3.3132278,139.24,139.19,3.3132278]
[1763557068058,1.7,139.21,139.19,3.3132278]
[1763557068642,1.7,139.21,139.19,3.7132278]
[1763557068860,1.7,139.21,139.2,3.3132278]
[1763557069061,1.7,139.21,139.19,3.7132278]
[1763557069251,1.7,139.21,139.18,25.14729127]
[1763557069252,0.7,139.25,139.2,3.7132278]
[1763557069458,1.7,139.24,139.21,28.45509978]
[1763557069661,2.36,139.24,139.21,25.14187198]
[1763557070729,2.36,139.24,139.21,7.18339199]
[1763557070730,3.9732278,139.23,139.21,7.18339199]
[1763557070959,0.66,139.22,139.21,7.18339199]
[1763557071433,0.66,139.22,139.19,17.96075367]
[1763557073157,1.7,139.21,139.19,17.96075367]
[1763557073562,0.66,139.2,139.19,17.96075367]
[1763557073768,2.36,139.21,139.19,17.96075367]
[1763557074060,1.7,139.21,139.18,7.18494036]
[1763557074261,2.36,139.21,139.18,7.18494036]
[1763557074471,1.7,139.21,139.18,25.14729127]
[1763557074775,1.7,139.21,139.18,28.86051907]
[1763557075275,1.7,139.21,139.18,25.54729127]
[1763557075458,1.7,139.21,139.18,28.86051907]
[1763557075958,2.36,139.21,139.18,28.86051907]
[1763557076335,1.7,139.21,139.19,0.4]
[1763557076730,1.7,139.21,139.18,25.14729127]
[1763557076931,1.7,139.21,139.19,0.4]
[1763557077564,1.7,139.21,139.2,7.18390804]
[1763557078971,2.36,139.21,139.19,7.18442416]
[1763557079457,0.66,139.2,139.19,7.18442416]
[1763557080475,2.36,139.21,139.19,7.18442416]
[1763557080761,0.66,139.2,139.18,25.14729127]
[1763557082061,1.7,139.21,139.18,28.86051907]
[1763557082247,2.36,139.21,139.18,28.86051907]
[1763557084145,1.7,139.21,139.18,28.86051907]
[1763557084465,2.36,139.21,139.18,28.86051907]
[1763557084672,2.36,139.21,139.18,28.46051907]
[1763557085044,0.66,139.2,139.18,28.46051907]
[1763557085784,2.36,139.21,139.18,28.46051907]
[1763557086456,2.36,139.21,139.18,28.86051907]
[1763557086974,18.12096,139.24,139.19,3.7132278]
[1763557087270,0.66,139.23,139.19,3.7132278]
[1763557087860,0.66,139.23,139.19,3.3132278]
[1763557088246,0.66,139.23,139.18,64.78522089]
[1763557088844,0.66,139.23,139.19,3.3132278]
[1763557089069,0.66,139.23,139.2,25.14367815]
[1763557091084,0.66,139.23,139.2,25.54367815]
[1763557091379,0.66,139.23,139.2,25.14367815]
[1763557093278,0.66,139.23,139.2,17.95977011]
[1763557095175,0.66,139.23,139.2,25.14367815]
[1763557095503,3.9732278,139.23,139.2,25.14367815]
[1763557095678,3.3132278,139.21,139.2,7.18390804]
[1763557095858,5.0132278,139.21,139.2,7.18390804]
[1763557096060,5.6732278,139.21,139.2,7.18390804]
[1763557096253,2.36,139.21,139.2,7.18390804]
[1763557097173,2.36,139.21,139.18,21.27507987]
[1763557097480,2.36,139.21,139.18,21.67507987]
[1763557097779,2.36,139.21,139.18,21.27507987]
[1763557097993,0.66,139.2,139.18,21.27507987]
[1763557098653,1.7,139.21,139.18,21.27507987]
[1763557098654,2.36,139.21,139.18,21.27507987]
[1763557098861,1.7,139.21,139.2,3.3132278]
[1763557099079,1.7,139.21,139.2,7.18390804]
[1763557101368,0.71,139.22,139.2,7.18390804]
[1763557101567,0.71,139.23,139.2,7.18390804]
[1763557102168,0.71,139.23,139.2,25.14367815]
[1763557102588,19.82096,139.24,139.2,25.54367815]
[1763557102892,0.71,139.23,139.2,25.14367815]
[1763557103184,0.71,139.23,139.2,18.35977011]
[1763557103490,0.71,139.23,139.2,17.95977011]
[1763557104072,0.71,139.23,139.2,18.35977011]
[1763557104270,0.71,139.23,139.2,17.95977011]
[1763557105259,0.71,139.23,139.2,25.14367815]
[1763557106163,19.82096,139.24,139.21,0.4]
[1763557106378,1.7,139.24,139.21,0.4]
[1763557106691,1.7,139.24,139.23,3.3132278]
[1763557106879,0.66,139.25,139.23,3.3132278]
[1763557107270,0.66,139.25,139.24,7.18184429]
[1763557107469,3.85679531,139.3,139.24,10.49507209]
[1763557107775,2.36,139.29,139.26,3.3132278]
[1763557108362,1.7,139.29,139.24,61.04567651]
[1763557108680,2.36,139.29,139.25,0.4]
[1763557108869,0.66,139.28,139.25,3.3132278]
[1763557109064,0.66,139.28,139.25,3.7132278]
[1763557109266,1.7,139.29,139.27,7.18029726]
[1763557109770,1.7,139.29,139.27,10.49352506]
[1763557110089,1.7,139.29,139.28,0.4]
[1763557110985,1.7,139.29,139.27,10.89352506]
[1763557111406,0.1,139.3,139.28,0.4]
[1763557111561,0.1,139.3,139.29,3.3132278]
[1763557111767,0.1,139.3,139.28,0.4]
[1763557112192,0.1,139.3,139.28,3.7132278]
[1763557112598,0.1,139.3,139.29,0.4]
[1763557112798,0.1,139.31,139.29,3.7132278]
[1763557112967,0.1,139.31,139.3,3.3132278]
[1763557113291,1e-08,139.31,139.3,10.89197869]
[1763557113476,1e-08,139.32,139.3,10.49197869]
[1763557113675,1e-08,139.32,139.31,3.7132278]
[1763557113983,0.1,139.34,139.31,5.4132278]
[1763557114177,0.1,139.34,139.33,3.3132278]
[1763557114709,0.1,139.34,139.33,3.7132278]
[1763557115809,0.1,139.34,139.33,10.89043299]
[1763557116432,0.1,139.34,139.33,10.49043299]
[1763557116711,0.1,139.34,139.33,10.89043299]
[1763557117377,0.1,139.34,139.33,7.17720519]
[1763557117803,0.76,139.34,139.33,7.17720519]
[1763557118190,0.1,139.34,139.33,7.17720519]
[1763557118373,0.76,139.34,139.33,7.17720519]
[1763557118792,0.1,139.34,139.33,7.17720519]
[1763557118992,0.76,139.34,139.33,7.17720519]
[1763557119611,0.1,139.34,139.33,7.17720519]
[1763557119793,0.1,139.37,139.33,10.89043299]
[1763557119998,0.1,139.37,139.36,3.3132278]
[1763557120188,0.1,139.37,139.33,26.82021818]
[1763557120389,0.66,139.36,139.33,7.17720519]
[1763557121095,0.66,139.36,139.33,25.12021818]
[1763557121304,0.66,139.36,139.33,27.23547227]
[1763557121501,0.66,139.36,139.33,25.12021818]
[1763557122204,0.66,139.36,139.33,27.23547227]
[1763557123014,0.66,139.36,139.33,25.12021818]
[1763557123714,0.66,139.36,139.33,27.23547227]
[1763557124888,18.88096,139.37,139.33,27.63547227]
[1763557125113,18.22096,139.37,139.33,27.63547227]
[1763557125313,0.66,139.36,139.33,27.63547227]
[1763557125612,0.66,139.36,139.33,25.12021818]
[1763557125811,0.66,139.36,139.33,27.23547227]
[1763557126014,18.22096,139.37,139.35,7.17617509]
[1763557126184,0.1,139.37,139.36,2.11525409]
[1763557126693,0.1,139.37,139.36,2.51525409]
[1763557126887,0.1,139.37,139.36,2.11525409]
[1763557128109,0.1,139.37,139.36,9.29091425]
[1763557128412,1e-08,139.37,139.36,9.69091425]
[1763557129291,1e-08,139.37,139.36,11.39091425]
[1763557130213,1e-08,139.37,139.36,19.85193061]
[1763557130794,1e-08,139.37,139.36,37.97289061]
[1763557131205,1e-08,139.37,139.36,27.81187425]
[1763557131517,1e-08,139.37,139.36,29.51187425]
[1763557132917,1e-08,139.37,139.36,10.99091425]
[1763557133096,1e-08,139.37,139.36,11.39091425]
[1763557133423,1e-08,139.37,139.36,10.99091425]
[1763557134096,1e-08,139.37,139.36,11.39091425]
[1763557134806,1e-08,139.37,139.36,19.85193061]
[1763557136597,1e-08,139.37,139.36,11.39091425]
[1763557137308,1e-08,139.37,139.36,7.17566016]
[1763557137504,1e-08,139.37,139.36,10.99091425]
[1763557138525,0.70000001,139.37,139.36,9.29091425]
[1763557139314,1e-08,139.37,139.36,9.29091425]
[1763557140403,1e-08,139.37,139.36,7.17566016]
[1763557140704,1e-08,139.37,139.36,9.29091425]
[1763557141807,0.70000001,139.37,139.36,7.17566016]
[1763557142008,0.70000001,139.37,139.36,9.29091425]
[1763557142227,1e-08,139.37,139.36,9.29091425]
[1763557143042,1e-08,139.37,139.36,7.17566016]
[1763557143216,1e-08,139.37,139.36,9.29091425]
[1763557144033,1e-08,139.37,139.36,9.69091425]
[1763557144235,1e-08,139.37,139.36,11.39091425]
[1763557144820,1e-08,139.37,139.36,9.29091425]
[1763557145030,0.70000001,139.37,139.36,9.29091425]
[1763557145222,1e-08,139.37,139.36,9.29091425]
[1763557149534,1e-08,139.37,139.34,20.04053673]
[1763557149535,0.70000001,139.37,139.35,7.17617509]
[1763557149738,1e-08,139.37,139.36,2.11525409]
[1763557151141,1e-08,139.37,139.36,9.29091425]
[1763557151336,1e-08,139.37,139.36,9.69091425]
[1763557151818,1e-08,139.37,139.36,10.99091425]
[1763557153225,1e-08,139.37,139.36,9.29091425]
[1763557153740,0.70000001,139.37,139.36,9.29091425]
[1763557154130,0.70000001,139.37,139.36,7.17566016]
[1763557155141,0.70000001,139.37,139.32,18.12096]
[1763557155341,2.11525409,139.33,139.25,7.87108488]
[1763557155531,4.51525409,139.32,139.25,25.82440624]
[1763557155850,2.4,139.32,139.29,2.11525409]
[1763557156024,0.7,139.34,139.31,2.11525409]
[1763557156344,0.7,139.34,139.28,1.7]
[1763557156547,2.81525409,139.34,139.29,2.11525409]
[1763557157146,2.11525409,139.31,139.26,2.11525409]
[1763557157321,105.51525409,139.3,139.25,63.15630305]
[1763557157643,2.11525409,139.29,139.25,25.13440624]
[1763557157945,3.81525409,139.28,139.25,7.18108488]
[1763557158146,0.7,139.27,139.25,7.18108488]
[1763557158528,0.7,139.27,139.25,9.29633897]
[1763557158845,2.4,139.27,139.25,9.29633897]
[1763557160354,1.7,139.27,139.26,2.11525409]
[1763557161338,2.38,139.27,139.26,7.18081286]
[1763557161729,0.68,139.27,139.26,7.18081286]
[1763557162850,1.7,139.28,139.26,7.18081286]
[1763557163044,2.38,139.28,139.26,7.18081286]
[1763557163950,17.95393321,139.3,139.27,2.11525409]
[1763557164165,105.1,139.29,139.28,2.11525409]
[1763557164335,1.7,139.29,139.28,2.11525409]
[1763557165159,1.7,139.29,139.26,61.03690937]
[1763557165336,0.68,139.28,139.26,63.15216346]
[1763557166737,0.68,139.28,139.27,2.11525409]
[1763557167651,0.68,139.28,139.27,9.29555135]
[1763557168642,0.68,139.28,139.25,7.18132854]
[1763557168881,0.68,139.28,139.26,2.11525409]
[1763557169945,0.68,139.28,139.27,7.18029726]
[1763557170371,0.68,139.28,139.26,2.11525409]
[1763557170372,0.68,139.28,139.26,9.2958407]
[1763557170592,0.68,139.28,139.26,7.18058661]
[1763557170771,0.68,139.28,139.26,9.2958407]
[1763557171067,0.68,139.28,139.27,2.11525409]
[1763557171444,0.69,139.29,139.27,2.11525409]
[1763557171655,2.39,139.28,139.27,2.11525409]
[1763557171847,2.39,139.28,139.26,25.13261878]
[1763557171848,2.39,139.28,139.26,27.24787287]
[1763557172053,0.69,139.27,139.26,27.24787287]
[1763557172670,0.69,139.27,139.26,7.18058661]
[1763557172867,0.69,139.27,139.23,7.18236012]
[1763557173080,103.4,139.26,139.23,9.29761421]
[1763557173258,1.7,139.25,139.23,9.29761421]
[1763557173461,103.4,139.24,139.23,9.29761421]
[1763557173653,104.09,139.24,139.23,9.29761421]
[1763557174666,0.69,139.24,139.23,7.18236012]
[1763557177477,0.69,139.24,139.23,9.29761421]
[1763557178973,0.69,139.24,139.23,7.18236012]
[1763557179676,0.69,139.24,139.22,7.38263682]
[1763557179880,18.12096,139.23,139.22,0.2]
[1763557180262,18.81096,139.23,139.22,0.2]
[1763557180980,28.59978769,139.23,139.22,0.2]
[1763557182377,0.69,139.24,139.22,9.49813011]
[1763557182583,2.39,139.23,139.22,9.49813011]
[1763557182764,2.39,139.23,139.22,10.69353244]
[1763557183263,2.39,139.23,139.21,17.95795768]
[1763557183264,92.70646756,139.22,139.21,17.95795768]
[1763557183591,92.70646756,139.22,139.21,21.2686141]
[1763557183969,93.39646756,139.22,139.21,21.2686141]
[1763557184278,93.39646756,139.22,139.21,10.49404841]
[1763557184597,93.39646756,139.22,139.21,7.18339199]
[1763557184761,93.39646756,139.22,139.21,3.31065642]
[1763557185293,92.70646756,139.22,139.21,3.31065642]
[1763557185674,93.39646756,139.22,139.21,3.31065642]
[1763557186167,92.70646756,139.22,139.21,3.31065642]
[1763557186879,92.70646756,139.22,139.21,10.49404841]
[1763557187488,95.09646756,139.22,139.21,10.49404841]
[1763557190383,94.40646756,139.22,139.21,10.49404841]
[1763557190881,1.7,139.22,139.21,10.49404841]
[1763557195288,0.69,139.23,139.21,10.49404841]
[1763557195465,2.39,139.22,139.21,7.18339199]
[1763557196489,2.39,139.22,139.21,10.49404841]
[1763557197488,1.7,139.22,139.21,11.20404841]
[1763557197784,1.7,139.24,139.21,29.1625284]
[1763557197993,2.39,139.24,139.23,3.31065642]
[1763557198872,2.39,139.24,139.21,25.14187198]
[1763557199073,0.69,139.23,139.22,3.31065642]